[Event "Titled Tuesday Blitz May 24 Early 2022"]
[White "Namitbir Singh Walia"]
[Black "Avramidou, Anastasia"]
[WhiteFideId "35071068"]
[BlackFideId "4239873"]
[WhiteElo "1565"]
[BlackElo "2183"]
[Result "0-1"]
[Round "09"]
[TimeControl "180+1"]
[Date "2022.05.25"]
[WhiteClock "0:00:03"]
[BlackClock "0:00:10"]

1. d4 {[%clk 0:03:00]}  c5 {[%clk 0:02:47]} 2. dxc5 {[%clk 0:03:00]}  Nf6 {[%clk 0:02:47]} 3. Nf3 {[%clk 0:02:58]}  g6 {[%clk 0:02:48]} 4. g3 {[%clk 0:02:57]}  Bg7 {[%clk 0:02:48]} 5. Bg2 {[%clk 0:02:57]}  O-O {[%clk 0:02:49]} 6. O-O {[%clk 0:02:58]}  Na6 {[%clk 0:02:50]} 7. Be3 {[%clk 0:02:53]}  Qc7 {[%clk 0:02:39]} 8. Nc3 {[%clk 0:02:41]}  Nxc5 {[%clk 0:02:39]} 9. Bd4 {[%clk 0:02:20]}  Re8 {[%clk 0:01:54]} 10. Nd5 {[%clk 0:01:59]}  Nxd5 {[%clk 0:01:49]} 11. Bxg7 {[%clk 0:01:58]}  Ne3 {[%clk 0:01:39]} 12. fxe3 {[%clk 0:01:09]}  Kxg7 {[%clk 0:01:37]} 13. Qd4+ {[%clk 0:01:07]}  f6 {[%clk 0:01:27]} 14. Rad1 {[%clk 0:00:51]}  Ne6 {[%clk 0:01:26]} 15. Qd2 {[%clk 0:00:48]}  Rb8 {[%clk 0:01:08]} 16. c3 {[%clk 0:00:48]}  b6 {[%clk 0:01:08]} 17. e4 {[%clk 0:00:48]}  Bb7 {[%clk 0:01:06]} 18. e5 {[%clk 0:00:40]}  Rbd8 {[%clk 0:00:33]} 19. exf6+ {[%clk 0:00:22]}  exf6 {[%clk 0:00:34]} 20. Nd4 {[%clk 0:00:19]}  Bxg2 {[%clk 0:00:32]} 21. Kxg2 {[%clk 0:00:20]}  Nxd4 {[%clk 0:00:31]} 22. cxd4 {[%clk 0:00:19]}  Re6 {[%clk 0:00:20]} 23. d5 {[%clk 0:00:18]}  Re5 {[%clk 0:00:20]} 24. Rf4 {[%clk 0:00:15]}  Rde8 {[%clk 0:00:19]} 25. Rf2 {[%clk 0:00:15]}  Qd6 {[%clk 0:00:18]} 26. Qf4 {[%clk 0:00:14]}  f5 {[%clk 0:00:16]} 27. Qd4 {[%clk 0:00:14]}  Qf6 {[%clk 0:00:16]} 28. Rd2 {[%clk 0:00:13]}  d6 {[%clk 0:00:15]} 29. Qd3 {[%clk 0:00:12]}  R8e7 {[%clk 0:00:16]} 30. Qa3 {[%clk 0:00:11]}  Re4 {[%clk 0:00:16]} 31. Qf3 {[%clk 0:00:11]}  Qe5 {[%clk 0:00:16]} 32. Qd3 {[%clk 0:00:11]}  Re3 {[%clk 0:00:16]} 33. Qc4 {[%clk 0:00:09]}  Qe4+ {[%clk 0:00:16]} 34. Qxe4 {[%clk 0:00:09]}  R3xe4 {[%clk 0:00:17]} 35. Kf1 {[%clk 0:00:09]}  Kf6 {[%clk 0:00:17]} 36. Rf3 {[%clk 0:00:10]}  Rc4 {[%clk 0:00:17]} 37. Ra3 {[%clk 0:00:08]}  Rec7 {[%clk 0:00:16]} 38. Kf2 {[%clk 0:00:08]}  R4c5 {[%clk 0:00:16]} 39. Rad3 {[%clk 0:00:08]}  Re7 {[%clk 0:00:15]} 40. Kf3 {[%clk 0:00:08]}  Rec7 {[%clk 0:00:15]} 41. e4 {[%clk 0:00:08]}  fxe4+ {[%clk 0:00:14]} 42. Kxe4 {[%clk 0:00:08]}  Rc4+ {[%clk 0:00:15]} 43. Kf3 {[%clk 0:00:09]}  Rc1 {[%clk 0:00:15]} 44. Re2 {[%clk 0:00:09]}  Rf1+ {[%clk 0:00:15]} 45. Kg2 {[%clk 0:00:09]}  Rfc1 {[%clk 0:00:15]} 46. Rf3+ {[%clk 0:00:09]}  Kg7 {[%clk 0:00:15]} 47. Rfe3 {[%clk 0:00:07]}  Kf7 {[%clk 0:00:12]} 48. Rf2+ {[%clk 0:00:07]}  Kg7 {[%clk 0:00:12]} 49. Re6 {[%clk 0:00:07]}  Rd7 {[%clk 0:00:12]} 50. Rfe2 {[%clk 0:00:05]}  Rcc7 {[%clk 0:00:11]} 51. h4 {[%clk 0:00:04]}  Kf7 {[%clk 0:00:11]} 52. Rf2+ {[%clk 0:00:04]}  Kg7 {[%clk 0:00:11]} 53. Rfe2 {[%clk 0:00:04]}  Kf7 {[%clk 0:00:11]} 54. Kh3 {[%clk 0:00:04]}  Rc5 {[%clk 0:00:11]} 55. Rf2+ {[%clk 0:00:03]}  Kg7 {[%clk 0:00:11]} 56. Rd2 {[%clk 0:00:03]}  a5 {[%clk 0:00:11]} 57. Re3 {[%clk 0:00:02]}  b5 {[%clk 0:00:11]} 58. Rb3 {[%clk 0:00:02]}  b4 {[%clk 0:00:12]} 59. Rbd3 {[%clk 0:00:03]}  Rc4 {[%clk 0:00:12]} 60. Re2 {[%clk 0:00:03]}  Kf7 {[%clk 0:00:12]} 61. Rf3+ {[%clk 0:00:03]}  Kg7 {[%clk 0:00:12]} 62. Rfe3 {[%clk 0:00:03]}  Rd4 {[%clk 0:00:11]} 63. Re7+ {[%clk 0:00:03]}  Rxe7 {[%clk 0:00:12]} 64. Rxe7+ {[%clk 0:00:04]}  Kf6 {[%clk 0:00:12]} 65. Rxh7 {[%clk 0:00:04]}  Rxd5 {[%clk 0:00:13]} 66. Ra7 {[%clk 0:00:04]}  Rb5 {[%clk 0:00:12]} 67. Ra6 {[%clk 0:00:03]}  Ke5 {[%clk 0:00:12]} 68. Kg4 {[%clk 0:00:04]}  Kd5 {[%clk 0:00:11]} 69. Kg5 {[%clk 0:00:04]}  Kc4+ {[%clk 0:00:10]} 70. Kxg6 {[%clk 0:00:04]}  d5 {[%clk 0:00:11]} 71. Rd6 {[%clk 0:00:05]}  d4 {[%clk 0:00:11]} 72. Rd8 {[%clk 0:00:05]}  d3 {[%clk 0:00:12]} 73. h5 {[%clk 0:00:05]}  Rd5 {[%clk 0:00:11]} 74. Rxd5 {[%clk 0:00:04]}  Kxd5 {[%clk 0:00:12]} 75. h6 {[%clk 0:00:05]}  d2 {[%clk 0:00:13]} 76. h7 {[%clk 0:00:05]}  d1=Q {[%clk 0:00:14]} 77. h8=Q {[%clk 0:00:06]}  Qg4+ {[%clk 0:00:14]} 78. Kf7 {[%clk 0:00:06]}  Qf3+ {[%clk 0:00:14]} 79. Qf6 {[%clk 0:00:05]}  Qxg3 {[%clk 0:00:14]} 80. Qf5+ {[%clk 0:00:05]}  Qe5 {[%clk 0:00:14]} 81. Qd7+ {[%clk 0:00:04]}  Kc4 {[%clk 0:00:13]} 82. b3+ {[%clk 0:00:03]}  Kc5 {[%clk 0:00:11]} 83. Qa7+ {[%clk 0:00:02]}  Kb5 {[%clk 0:00:11]} 84. Qb7+ {[%clk 0:00:02]}  Kc5 {[%clk 0:00:11]} 85. Qa7+ {[%clk 0:00:03]}  Kd6 {[%clk 0:00:11]} 86. Qb6+ {[%clk 0:00:03]}  Kd7 {[%clk 0:00:11]} 87. Qb7+ {[%clk 0:00:03]}  Qc7 {[%clk 0:00:10]} 88. Qd5+ {[%clk 0:00:03]}  Qd6 {[%clk 0:00:10]} 89. Qxa5 {[%clk 0:00:03]}  Qe6+ {[%clk 0:00:09]} 90. Kg7 {[%clk 0:00:02]}  Qe5+ {[%clk 0:00:10]} 91. Kg6 {[%clk 0:00:03]}  Qxa5 {[%clk 0:00:10]} 0-1


[Site "https://www.chess.com"]

[Event "Titled Tuesday Blitz May 24 Early 2022"]
[White "Navalgund, Niranjan"]
[Black "Taboas Rodriguez, Daniel"]
[WhiteFideId "5030854"]
[BlackFideId "2208466"]
[WhiteElo "2290"]
[BlackElo "2429"]
[Result "0-1"]
[Round "09"]
[TimeControl "180+1"]
[Date "2022.05.25"]
[WhiteClock "0:00:44"]
[BlackClock "0:00:32"]

1. e4 {[%clk 0:02:52]}  e6 {[%clk 0:02:43]} 2. d4 {[%clk 0:02:51]}  d5 {[%clk 0:02:44]} 3. Bd2 {[%clk 0:02:52]}  dxe4 {[%clk 0:02:36]} 4. Bc3 {[%clk 0:02:52]}  Nf6 {[%clk 0:02:36]} 5. Nd2 {[%clk 0:02:51]}  Nc6 {[%clk 0:02:23]} 6. Nb3 {[%clk 0:02:17]}  Nd5 {[%clk 0:02:12]} 7. Bc4 {[%clk 0:02:08]}  e3 {[%clk 0:02:11]} 8. Qe2 {[%clk 0:02:04]}  exf2+ {[%clk 0:02:09]} 9. Qxf2 {[%clk 0:02:04]}  Qg5 {[%clk 0:01:59]} 10. Bd2 {[%clk 0:02:00]}  Qf6 {[%clk 0:01:57]} 11. Nf3 {[%clk 0:01:45]}  h6 {[%clk 0:01:51]} 12. O-O-O {[%clk 0:01:43]}  Bd6 {[%clk 0:01:50]} 13. Nc5 {[%clk 0:01:41]}  Bf4 {[%clk 0:01:45]} 14. Ne4 {[%clk 0:01:41]}  Bxd2+ {[%clk 0:01:42]} 15. Qxd2 {[%clk 0:01:42]}  Qg6 {[%clk 0:01:41]} 16. Ng3 {[%clk 0:01:36]}  O-O {[%clk 0:01:39]} 17. Rdf1 {[%clk 0:01:34]}  Bd7 {[%clk 0:01:38]} 18. c3 {[%clk 0:01:27]}  Rae8 {[%clk 0:01:37]} 19. Qf2 {[%clk 0:01:21]}  Nf4 {[%clk 0:01:33]} 20. Nh4 {[%clk 0:01:20]}  Nd3+ {[%clk 0:01:33]} 21. Bxd3 {[%clk 0:01:18]}  Qxd3 {[%clk 0:01:34]} 22. Rd1 {[%clk 0:01:17]}  Qb5 {[%clk 0:01:26]} 23. Kb1 {[%clk 0:01:17]}  Na5 {[%clk 0:01:23]} 24. Ne4 {[%clk 0:01:14]}  Bc6 {[%clk 0:01:21]} 25. Rhe1 {[%clk 0:01:10]}  Nc4 {[%clk 0:01:20]} 26. Nc5 {[%clk 0:01:08]}  b6 {[%clk 0:01:16]} 27. a4 {[%clk 0:01:04]}  Qxb2+ {[%clk 0:01:16]} 28. Qxb2 {[%clk 0:01:02]}  Nxb2 {[%clk 0:01:16]} 29. Kxb2 {[%clk 0:01:03]}  bxc5 {[%clk 0:01:17]} 30. dxc5 {[%clk 0:01:03]}  Bxa4 {[%clk 0:01:17]} 31. Ra1 {[%clk 0:01:03]}  Rb8+ {[%clk 0:01:14]} 32. Kc1 {[%clk 0:01:03]}  Bb5 {[%clk 0:01:11]} 33. Rxa7 {[%clk 0:01:02]}  Ra8 {[%clk 0:01:06]} 34. Rxa8 {[%clk 0:01:00]}  Rxa8 {[%clk 0:01:07]} 35. Kb2 {[%clk 0:01:00]}  Bc4 {[%clk 0:01:06]} 36. Re4 {[%clk 0:00:58]}  Bd5 {[%clk 0:01:02]} 37. Rg4 {[%clk 0:00:55]}  Ra2+ {[%clk 0:01:01]} 38. Kb1 {[%clk 0:00:55]}  Rf2 {[%clk 0:00:59]} 39. c4 {[%clk 0:00:54]}  Bc6 {[%clk 0:00:58]} 40. Kc1 {[%clk 0:00:50]}  g5 {[%clk 0:00:56]} 41. Nf3 {[%clk 0:00:48]}  Bxf3 {[%clk 0:00:54]} 42. gxf3 {[%clk 0:00:49]}  Rxf3 {[%clk 0:00:55]} 43. Rd4 {[%clk 0:00:49]}  Kg7 {[%clk 0:00:52]} 44. Rd7 {[%clk 0:00:49]}  Rc3+ {[%clk 0:00:52]} 45. Kd2 {[%clk 0:00:48]}  Rxc4 {[%clk 0:00:53]} 46. Rxc7 {[%clk 0:00:48]}  h5 {[%clk 0:00:53]} 47. Kd3 {[%clk 0:00:48]}  Rc1 {[%clk 0:00:53]} 48. Kd2 {[%clk 0:00:48]}  Rh1 {[%clk 0:00:49]} 49. c6 {[%clk 0:00:47]}  Rxh2+ {[%clk 0:00:49]} 50. Kd3 {[%clk 0:00:48]}  Rh1 {[%clk 0:00:44]} 51. Kd2 {[%clk 0:00:48]}  Ra1 {[%clk 0:00:44]} 52. Rb7 {[%clk 0:00:46]}  Ra6 {[%clk 0:00:44]} 53. c7 {[%clk 0:00:46]}  Rc6 {[%clk 0:00:44]} 54. Ke3 {[%clk 0:00:44]}  Kf6 {[%clk 0:00:43]} 55. Ke4 {[%clk 0:00:44]}  h4 {[%clk 0:00:44]} 56. Kf3 {[%clk 0:00:44]}  Kf5 {[%clk 0:00:40]} 57. Rb5+ {[%clk 0:00:43]}  e5 {[%clk 0:00:40]} 58. Rb7 {[%clk 0:00:43]}  g4+ {[%clk 0:00:39]} 59. Kg2 {[%clk 0:00:43]}  Kf4 {[%clk 0:00:35]} 60. c8=Q {[%clk 0:00:43]}  Rxc8 {[%clk 0:00:35]} 61. Rxf7+ {[%clk 0:00:44]}  Kg5 {[%clk 0:00:32]} 62. Rg7+ {[%clk 0:00:44]}  Kf5 {[%clk 0:00:32]} 63. Rf7+ {[%clk 0:00:44]}  Kg6 {[%clk 0:00:33]} 64. Re7 {[%clk 0:00:44]}  Rc2+ {[%clk 0:00:33]} 65. Kf1 {[%clk 0:00:45]}  Kf5 {[%clk 0:00:34]} 66. Rf7+ {[%clk 0:00:45]}  Kg5 {[%clk 0:00:33]} 67. Rg7+ {[%clk 0:00:45]}  Kf4 {[%clk 0:00:34]} 68. Rh7 {[%clk 0:00:44]}  h3 {[%clk 0:00:33]} 69. Rf7+ {[%clk 0:00:44]}  Kg3 {[%clk 0:00:32]} 0-1


[Site "https://www.chess.com"]

[Event "Titled Tuesday Blitz May 24 Early 2022"]
[White "Odegov, Artem"]
[Black "Agasarov, Benik"]
[WhiteFideId "34183644"]
[BlackFideId "13314823"]
[WhiteElo "2286"]
[BlackElo "2590"]
[Result "0-1"]
[Round "09"]
[TimeControl "180+1"]
[Date "2022.05.25"]
[WhiteClock "0:00:02"]
[BlackClock "0:00:31"]

1. d4 {[%clk 0:02:52]}  Nf6 {[%clk 0:03:00]} 2. c4 {[%clk 0:02:53]}  e6 {[%clk 0:03:00]} 3. Nf3 {[%clk 0:02:52]}  d5 {[%clk 0:02:59]} 4. Nc3 {[%clk 0:02:52]}  Bb4 {[%clk 0:02:59]} 5. Bg5 {[%clk 0:02:51]}  h6 {[%clk 0:02:58]} 6. Bxf6 {[%clk 0:02:50]}  Qxf6 {[%clk 0:02:58]} 7. Qa4+ {[%clk 0:02:51]}  Nc6 {[%clk 0:02:58]} 8. e3 {[%clk 0:02:51]}  O-O {[%clk 0:02:55]} 9. cxd5 {[%clk 0:02:48]}  exd5 {[%clk 0:02:55]} 10. Be2 {[%clk 0:02:48]}  Be6 {[%clk 0:02:54]} 11. O-O {[%clk 0:02:47]}  a6 {[%clk 0:02:54]} 12. Rac1 {[%clk 0:02:45]}  Bd6 {[%clk 0:02:53]} 13. Qc2 {[%clk 0:02:37]}  Rfd8 {[%clk 0:02:23]} 14. a3 {[%clk 0:02:33]}  Ne7 {[%clk 0:02:19]} 15. Na4 {[%clk 0:02:32]}  c6 {[%clk 0:02:16]} 16. Nc5 {[%clk 0:02:29]}  Bf5 {[%clk 0:02:13]} 17. Qc3 {[%clk 0:02:20]}  Rab8 {[%clk 0:02:10]} 18. b4 {[%clk 0:02:16]}  h5 {[%clk 0:02:04]} 19. Ne5 {[%clk 0:02:12]}  Bxe5 {[%clk 0:02:01]} 20. dxe5 {[%clk 0:02:13]}  Qg6 {[%clk 0:01:58]} 21. Bf3 {[%clk 0:01:54]}  h4 {[%clk 0:01:52]} 22. Kh1 {[%clk 0:01:35]}  h3 {[%clk 0:01:49]} 23. gxh3 {[%clk 0:01:19]}  Bxh3 {[%clk 0:01:42]} 24. Rg1 {[%clk 0:01:18]}  Qf5 {[%clk 0:01:39]} 25. Rg3 {[%clk 0:01:13]}  Ng6 {[%clk 0:01:39]} 26. Rcg1 {[%clk 0:00:58]}  Nxe5 {[%clk 0:01:05]} 27. e4 {[%clk 0:00:25]}  d4 {[%clk 0:00:35]} 28. exf5 {[%clk 0:00:13]}  dxc3 {[%clk 0:00:33]} 29. Rxh3 {[%clk 0:00:02]}  c2 {[%clk 0:00:31]} 0-1


[Site "https://www.chess.com"]

[Event "Titled Tuesday Blitz May 24 Early 2022"]
[White "Perez Gormaz, Matias"]
[Black "Borawski, Jakub"]
[WhiteFideId "3406342"]
[BlackFideId "1143000"]
[WhiteElo "2341"]
[BlackElo "2020"]
[Result "0-1"]
[Round "09"]
[TimeControl "180+1"]
[Date "2022.05.25"]
[WhiteClock "0:00:02"]
[BlackClock "0:00:16"]

1. e4 {[%clk 0:03:00]}  e5 {[%clk 0:02:59]} 2. Nf3 {[%clk 0:03:01]}  Nc6 {[%clk 0:02:59]} 3. Bb5 {[%clk 0:03:01]}  a6 {[%clk 0:03:00]} 4. Ba4 {[%clk 0:03:02]}  Nf6 {[%clk 0:03:00]} 5. d3 {[%clk 0:03:02]}  d6 {[%clk 0:02:59]} 6. c3 {[%clk 0:03:01]}  g6 {[%clk 0:03:00]} 7. O-O {[%clk 0:03:00]}  Bg7 {[%clk 0:03:00]} 8. h3 {[%clk 0:03:00]}  b5 {[%clk 0:03:00]} 9. Bb3 {[%clk 0:02:58]}  O-O {[%clk 0:03:00]} 10. Re1 {[%clk 0:02:58]}  Na5 {[%clk 0:03:00]} 11. Bc2 {[%clk 0:02:58]}  c5 {[%clk 0:03:00]} 12. Be3 {[%clk 0:02:56]}  Bb7 {[%clk 0:03:00]} 13. Nbd2 {[%clk 0:02:56]}  Qc7 {[%clk 0:02:58]} 14. d4 {[%clk 0:02:49]}  exd4 {[%clk 0:02:39]} 15. cxd4 {[%clk 0:02:48]}  Rfe8 {[%clk 0:02:40]} 16. d5 {[%clk 0:02:41]}  Nd7 {[%clk 0:02:29]} 17. Rb1 {[%clk 0:02:40]}  Nc4 {[%clk 0:02:10]} 18. Nxc4 {[%clk 0:02:36]}  bxc4 {[%clk 0:02:11]} 19. Nd2 {[%clk 0:02:29]}  c3 {[%clk 0:02:08]} 20. bxc3 {[%clk 0:02:11]}  Bxc3 {[%clk 0:02:09]} 21. Rb3 {[%clk 0:02:07]}  Bg7 {[%clk 0:02:08]} 22. Nc4 {[%clk 0:02:07]}  a5 {[%clk 0:02:08]} 23. Bf4 {[%clk 0:01:53]}  Ne5 {[%clk 0:02:02]} 24. Na3 {[%clk 0:01:32]}  Ba6 {[%clk 0:01:57]} 25. Nb5 {[%clk 0:01:28]}  Qd7 {[%clk 0:01:53]} 26. a4 {[%clk 0:01:23]}  Rab8 {[%clk 0:01:48]} 27. Bd2 {[%clk 0:00:37]}  Nc4 {[%clk 0:01:21]} 28. Bc1 {[%clk 0:00:23]}  Rec8 {[%clk 0:01:03]} 29. Bd3 {[%clk 0:00:21]}  Ne5 {[%clk 0:01:02]} 30. Bf1 {[%clk 0:00:20]}  c4 {[%clk 0:01:02]} 31. Rb1 {[%clk 0:00:19]}  Bxb5 {[%clk 0:01:02]} 32. axb5 {[%clk 0:00:18]}  Rxb5 {[%clk 0:01:02]} 33. Ba3 {[%clk 0:00:11]}  Rxb1 {[%clk 0:00:44]} 34. Qxb1 {[%clk 0:00:12]}  c3 {[%clk 0:00:37]} 35. Rc1 {[%clk 0:00:12]}  Nc4 {[%clk 0:00:34]} 36. Bxc4 {[%clk 0:00:07]}  Rxc4 {[%clk 0:00:34]} 37. Qb8+ {[%clk 0:00:08]}  Rc8 {[%clk 0:00:32]} 38. Qb3 {[%clk 0:00:02]}  Qe7 {[%clk 0:00:20]} 39. Qb6 {[%clk 0:00:01]}  Qxe4 {[%clk 0:00:16]} 40. Bxd6 {[%clk 0:00:02]}  c2 {[%clk 0:00:16]} 0-1


[Site "https://www.chess.com"]

[Event "Titled Tuesday Blitz May 24 Early 2022"]
[White "Pesotskiy, Mikhail"]
[Black "Nugumanov, Bakhtiyar"]
[WhiteFideId "34164453"]
[BlackFideId "13701797"]
[WhiteElo "2010"]
[BlackElo "2262"]
[Result "1-0"]
[Round "09"]
[TimeControl "180+1"]
[Date "2022.05.25"]
[WhiteClock "0:01:46"]
[BlackClock "0:00:02"]

1. d4 {[%clk 0:03:00]}  d5 {[%clk 0:02:59]} 2. c4 {[%clk 0:03:01]}  e6 {[%clk 0:02:57]} 3. Nc3 {[%clk 0:03:01]}  Nf6 {[%clk 0:02:57]} 4. cxd5 {[%clk 0:03:02]}  exd5 {[%clk 0:02:56]} 5. Bg5 {[%clk 0:02:57]}  c6 {[%clk 0:02:51]} 6. Qc2 {[%clk 0:02:57]}  Bd6 {[%clk 0:02:50]} 7. e3 {[%clk 0:02:58]}  O-O {[%clk 0:02:49]} 8. Bd3 {[%clk 0:02:59]}  h6 {[%clk 0:02:48]} 9. Bh4 {[%clk 0:02:59]}  a5 {[%clk 0:02:41]} 10. Nf3 {[%clk 0:02:55]}  Na6 {[%clk 0:02:21]} 11. a3 {[%clk 0:02:53]}  Nc7 {[%clk 0:02:21]} 12. O-O {[%clk 0:02:50]}  Re8 {[%clk 0:02:11]} 13. Rab1 {[%clk 0:02:48]}  Bg4 {[%clk 0:02:09]} 14. b4 {[%clk 0:02:47]}  Bxf3 {[%clk 0:02:08]} 15. gxf3 {[%clk 0:02:47]}  Ne6 {[%clk 0:01:51]} 16. Kh1 {[%clk 0:02:38]}  g5 {[%clk 0:01:33]} 17. Bg3 {[%clk 0:02:33]}  h5 {[%clk 0:01:34]} 18. Rg1 {[%clk 0:02:32]}  Kf8 {[%clk 0:01:28]} 19. Bf5 {[%clk 0:02:26]}  axb4 {[%clk 0:01:15]} 20. axb4 {[%clk 0:02:25]}  Bxg3 {[%clk 0:01:14]} 21. Rxg3 {[%clk 0:02:19]}  h4 {[%clk 0:01:06]} 22. Rg2 {[%clk 0:02:19]}  Nh5 {[%clk 0:01:05]} 23. Rbg1 {[%clk 0:02:19]}  Qf6 {[%clk 0:00:58]} 24. Bxe6 {[%clk 0:02:06]}  Rxe6 {[%clk 0:00:58]} 25. Qd1 {[%clk 0:02:07]}  Ra3 {[%clk 0:00:52]} 26. Rxg5 {[%clk 0:02:00]}  Ng3+ {[%clk 0:00:37]} 27. hxg3 {[%clk 0:01:48]}  Qxg5 {[%clk 0:00:29]} 28. Ne2 {[%clk 0:01:43]}  hxg3 {[%clk 0:00:24]} 29. Nxg3 {[%clk 0:01:44]}  Qh4+ {[%clk 0:00:21]} 30. Kg2 {[%clk 0:01:45]}  Ke7 {[%clk 0:00:15]} 31. Rh1 {[%clk 0:01:45]}  Qg5 {[%clk 0:00:13]} 32. Qc1 {[%clk 0:01:46]}  Ra2 {[%clk 0:00:06]} 33. Qc5+ {[%clk 0:01:45]}  Kd7 {[%clk 0:00:06]} 34. Rh7 {[%clk 0:01:45]}  Qg6 {[%clk 0:00:04]} 35. Rh8 {[%clk 0:01:45]}  Rxe3 {[%clk 0:00:02]} 36. Qf8 {[%clk 0:01:46]} 1-0


[Site "https://www.chess.com"]

[Event "Titled Tuesday Blitz May 24 Early 2022"]
[White "Pham, Le Thao Nguyen"]
[Black "Olafsson, Helgi"]
[WhiteFideId "12401226"]
[BlackFideId "2300010"]
[WhiteElo "2271"]
[BlackElo "2463"]
[Result "0-1"]
[Round "09"]
[TimeControl "180+1"]
[Date "2022.05.25"]
[WhiteClock "0:00:10"]
[BlackClock "0:00:46"]

1. d4 {[%clk 0:02:58]}  Nf6 {[%clk 0:02:59]} 2. Nf3 {[%clk 0:02:51]}  e6 {[%clk 0:02:58]} 3. Bg5 {[%clk 0:02:42]}  b6 {[%clk 0:02:56]} 4. e3 {[%clk 0:02:29]}  Bb7 {[%clk 0:02:55]} 5. Nbd2 {[%clk 0:02:29]}  h6 {[%clk 0:02:53]} 6. Bh4 {[%clk 0:02:29]}  Be7 {[%clk 0:02:53]} 7. Bd3 {[%clk 0:02:29]}  c5 {[%clk 0:02:52]} 8. c3 {[%clk 0:02:28]}  Nc6 {[%clk 0:02:48]} 9. Qe2 {[%clk 0:02:24]}  O-O {[%clk 0:02:40]} 10. O-O {[%clk 0:02:20]}  d5 {[%clk 0:02:31]} 11. Rad1 {[%clk 0:02:08]}  Rc8 {[%clk 0:02:29]} 12. Rfe1 {[%clk 0:02:04]}  cxd4 {[%clk 0:02:16]} 13. exd4 {[%clk 0:01:57]}  Nh5 {[%clk 0:02:16]} 14. Bg3 {[%clk 0:01:57]}  Nxg3 {[%clk 0:02:02]} 15. hxg3 {[%clk 0:01:57]}  Bd6 {[%clk 0:02:02]} 16. Bb1 {[%clk 0:01:52]}  g6 {[%clk 0:01:57]} 17. g4 {[%clk 0:01:45]}  Kg7 {[%clk 0:01:55]} 18. g3 {[%clk 0:01:41]}  Rc7 {[%clk 0:01:46]} 19. Kg2 {[%clk 0:01:27]}  Re8 {[%clk 0:01:42]} 20. Qe3 {[%clk 0:01:12]}  e5 {[%clk 0:01:40]} 21. Rh1 {[%clk 0:01:07]}  h5 {[%clk 0:01:29]} 22. gxh5 {[%clk 0:01:06]}  exd4 {[%clk 0:01:28]} 23. Qd3 {[%clk 0:00:49]}  Re4 {[%clk 0:01:10]} 24. hxg6 {[%clk 0:00:43]}  fxg6 {[%clk 0:01:08]} 25. Nxe4 {[%clk 0:00:42]}  dxe4 {[%clk 0:01:08]} 26. Qxe4 {[%clk 0:00:37]}  Ne5 {[%clk 0:01:08]} 27. Rxd4 {[%clk 0:00:11]}  Bxe4 {[%clk 0:01:04]} 28. Bxe4 {[%clk 0:00:12]}  Nxf3 {[%clk 0:00:55]} 29. Bxf3 {[%clk 0:00:12]}  Qf6 {[%clk 0:00:50]} 30. Rdh4 {[%clk 0:00:10]}  Rf7 {[%clk 0:00:48]} 31. Rh8 {[%clk 0:00:10]}  Qxf3+ {[%clk 0:00:46]} 0-1


[Site "https://www.chess.com"]

[Event "Titled Tuesday Blitz May 24 Early 2022"]
[White "Polster, Christian"]
[Black "Nilsen, Tobias Lang"]
[WhiteFideId "12965081"]
[BlackFideId "1521624"]
[WhiteElo "2309"]
[BlackElo "2014"]
[Result "1-0"]
[Round "09"]
[TimeControl "180+1"]
[Date "2022.05.25"]
[WhiteClock "0:00:11"]
[BlackClock "0:01:16"]

1. e4 {[%clk 0:03:00]}  Nf6 {[%clk 0:02:59]} 2. e5 {[%clk 0:03:00]}  Nd5 {[%clk 0:03:00]} 3. d4 {[%clk 0:03:00]}  d6 {[%clk 0:02:59]} 4. c4 {[%clk 0:03:00]}  Nb6 {[%clk 0:02:59]} 5. exd6 {[%clk 0:03:01]}  exd6 {[%clk 0:03:00]} 6. Nf3 {[%clk 0:03:01]}  Be7 {[%clk 0:02:59]} 7. h3 {[%clk 0:03:00]}  Bf5 {[%clk 0:02:56]} 8. Bd3 {[%clk 0:02:56]}  Bxd3 {[%clk 0:02:55]} 9. Qxd3 {[%clk 0:02:57]}  O-O {[%clk 0:02:55]} 10. O-O {[%clk 0:02:57]}  Nc6 {[%clk 0:02:53]} 11. b3 {[%clk 0:02:45]}  Bf6 {[%clk 0:02:47]} 12. Nc3 {[%clk 0:02:42]}  d5 {[%clk 0:02:47]} 13. c5 {[%clk 0:02:42]}  Nc8 {[%clk 0:02:47]} 14. Bf4 {[%clk 0:02:33]}  N8e7 {[%clk 0:02:46]} 15. Rfe1 {[%clk 0:02:31]}  g6 {[%clk 0:02:42]} 16. g4 {[%clk 0:02:08]}  Qd7 {[%clk 0:02:39]} 17. Kg2 {[%clk 0:02:07]}  Rae8 {[%clk 0:02:37]} 18. Bh6 {[%clk 0:02:02]}  Bg7 {[%clk 0:02:33]} 19. Bxg7 {[%clk 0:01:58]}  Kxg7 {[%clk 0:02:33]} 20. Re2 {[%clk 0:01:57]}  Ng8 {[%clk 0:02:30]} 21. Rae1 {[%clk 0:01:51]}  Rxe2 {[%clk 0:02:29]} 22. Qxe2 {[%clk 0:01:49]}  Nf6 {[%clk 0:02:30]} 23. Qd3 {[%clk 0:01:38]}  Re8 {[%clk 0:02:27]} 24. Rxe8 {[%clk 0:01:31]}  Qxe8 {[%clk 0:02:28]} 25. g5 {[%clk 0:01:28]}  Nh5 {[%clk 0:02:27]} 26. Qe3 {[%clk 0:01:16]}  Qd7 {[%clk 0:02:16]} 27. Ne5 {[%clk 0:01:09]}  Qf5 {[%clk 0:02:08]} 28. Nxd5 {[%clk 0:01:03]}  Qe6 {[%clk 0:02:07]} 29. Nxc7 {[%clk 0:00:55]}  Qf5 {[%clk 0:02:01]} 30. Ne8+ {[%clk 0:00:41]}  Kf8 {[%clk 0:01:57]} 31. Nd6 {[%clk 0:00:41]}  Nf4+ {[%clk 0:01:57]} 32. Kf3 {[%clk 0:00:38]}  Qxg5 {[%clk 0:01:46]} 33. Qxf4 {[%clk 0:00:34]}  Qh5+ {[%clk 0:01:41]} 34. Ke3 {[%clk 0:00:32]}  f5 {[%clk 0:01:38]} 35. Nxc6 {[%clk 0:00:29]}  bxc6 {[%clk 0:01:38]} 36. Qf3 {[%clk 0:00:24]}  Qg5+ {[%clk 0:01:37]} 37. Ke2 {[%clk 0:00:22]}  Qc1 {[%clk 0:01:35]} 38. Qe3 {[%clk 0:00:19]}  Qc2+ {[%clk 0:01:35]} 39. Kf3 {[%clk 0:00:18]}  Qd1+ {[%clk 0:01:34]} 40. Kg2 {[%clk 0:00:17]}  Kg7 {[%clk 0:01:32]} 41. Qe7+ {[%clk 0:00:16]}  Kh6 {[%clk 0:01:30]} 42. Nf7+ {[%clk 0:00:16]}  Kg7 {[%clk 0:01:30]} 43. Ng5+ {[%clk 0:00:15]}  Kh6 {[%clk 0:01:31]} 44. h4 {[%clk 0:00:14]}  Kh5 {[%clk 0:01:30]} 45. Qxh7+ {[%clk 0:00:13]}  Kg4 {[%clk 0:01:30]} 46. Qxg6 {[%clk 0:00:13]}  Kf4 {[%clk 0:01:27]} 47. Ne6+ {[%clk 0:00:11]}  Ke4 {[%clk 0:01:27]} 48. Qg3 {[%clk 0:00:10]}  a5 {[%clk 0:01:17]} 49. Qe3+ {[%clk 0:00:10]}  Kd5 {[%clk 0:01:16]} 50. Qe5# {[%clk 0:00:11]} 1-0


[Site "https://www.chess.com"]